Cogmind - Beta 14 @@@ ROGUE MODE // 2024.10.25 @ 15:38:19 Player: Kate+Gabe4evr Result: Destroyed by Piercing Trap Performance ------------- Evolutions (0) 0 Regions Visited (2) 400 Robots Destroyed (16) 80 Value Destroyed (424) 424 Prototype IDs (0) 0 Alien Tech Used (0) 0 Bonus (0) 0 TOTAL SCORE: 904 Bonus ------- None Cogmind --------- Core Integrity 0/250 Matter 300/300 Energy 169/170 System Corruption 2% Temperature Cool (0) Movement Core (350) Ox6 Location -10/Subcaves Parts ------- > --- POWER (1) -------- Makeshift Power Source > --- PROPULSION (2) --- Subdweller Monowheel > --- UTILITY (2) ------ Medium Storage Unit Structural Scanner > --- WEAPON (2) ------- Subdweller Laser > --- INVENTORY (10) --- Ion Engine Aluminum Leg Aluminum Leg Heat Sink Large Storage Unit Medium Laser Flamer Peak State ------------ > --- POWER ------------ Makeshift Power Source > --- PROPULSION ------- Subdweller Monowheel > --- UTILITY ---------- Medium Storage Unit Structural Scanner > --- WEAPON ----------- Subdweller Laser > --- INVENTORY -------- Ion Engine Aluminum Leg Aluminum Leg Heat Sink Large Storage Unit Medium Laser [Rating: 10] Favorites ----------- Power Ion Engine Engine Ion Engine Propulsion Aluminum Leg Leg Aluminum Leg Wheel Subdweller Monowheel Utility Structural Scanner Device Structural Scanner Storage Medium Storage Unit Weapon Medium Laser Energy Gun Medium Laser Ballistic Gun Assault Rifle Build | -11 -10 -10 ------- Run | Yrd Mat Sub Slots Evolved . | . . . Power . | . . . Propulsion . | . . . Utility . | . . . Weapon . | . . . Parts Attached 17 | 6 7 4 Power 5 | 1 3 1 Engine 5 | 1 3 1 Core . | . . . Reactor . | . . . Propulsion 5 | 2 2 1 Treads . | . . . Leg 4 | 2 2 . Wheel 1 | . . 1 Hover . | . . . Flight . | . . . Utility 3 | 1 2 . Device 1 | . 1 . Storage 2 | 1 1 . Processor . | . . . Hackware . | . . . Protection . | . . . Artifact . | . . . Weapon 4 | 2 . 2 Energy Gun 3 | 1 . 2 Energy Cannon . | . . . Ballistic Gun 1 | 1 . . Ballistic Cannon . | . . . Launcher . | . . . Special Weapon . | . . . Impact Weapon . | . . . Slashing Weapon . | . . . Piercing Weapon . | . . . Special Melee Weapon . | . . . Unidentified Prototypes . | . . . Parts Lost 7 | . 2 5 Power 2 | . 1 1 Propulsion 3 | . 1 2 Utility . | . . . Weapon 2 | . . 2 Highest Loss Streak 3 | . 1 3 To Critical Strikes . | . . . Average Slot Usage (%) 91 | . 98 67 Engine 12 | . 14 6 Leg 22 | . 27 8 Wheel 1 | . . 6 Device 13 | . 13 14 Storage 14 | . 14 14 Energy Gun 14 | . 14 17 Ballistic Gun 10 | . 14 . Peak Build Rating 10 | 6 7 10 Average Rating 6 | 4 6 6 On Entrance 4 | . 6 7 Naked Turns . | . . . Heaviest Build 20 | 14 20 20 Greatest Support 20 | 20 20 20 Greatest Overweight (x) 6 | 2 1 6 Average Overweight (x) . | . . . Largest Inventory Capacity 10 | 8 10 10 Average Capacity 9 | 6 9 10 Most Carried 7 | . 5 7 Average Carried 3 | . 3 5 Final Capacity 10 | 8 10 10 Final Carried 7 | . 5 7 Class Distribution -------------------- 100% | Mutant Dominant Class ---------------- Mutant | -10/Materials Mutant | -10/Subcaves Resources | -11 -10 -10 ----------- Run | Yrd Mat Sub Matter Collected 463 | 160 246 57 Remotely . | . . . Salvage Created 573 | . 403 170 Parts 31 | . 20 11 Haulers Intercepted . | . . . Recyclers Shooed 3 | . 3 . Parts Field Recycled . | . . . Retrieved Matter . | . . . Parts Self-Destructed . | . . . Prevented . | . . . Kills | -11 -10 -10 ------- Run | Yrd Mat Sub Combat Hostiles Destroyed 13 | . 9 4 Guns 13 | . 9 4 Classes Destroyed 5 | . 4 1 Builder 1 | . 1 . Recycler 2 | . 2 . Swarmer 3 | . 3 . Grunt 6 | . 6 . Subdweller 4 | . . 4 Best Kill Streak 5 | . 5 1 Combat Bots Only 3 | . 3 1 Max Kills in Single Turn 1 | . 1 1 Gunslinging . | . . . Exploded . | . . . Melee . | . . . Uniques/NPCs Destroyed . | . . . Combat | -11 -10 -10 -------- Run | Yrd Mat Sub Hostile Shots Fired 84 | . 48 36 Missed 23 | . 13 10 Damage Taken 1026 | . 419 607 Core 252 | . 49 203 Absorbed by Shields . | . . . Core Remaining (%) 100 | 100 . . Volleys Fired 71 | . 34 37 Largest 2 | . 2 2 Hottest 120 | . 70 120 Shots Fired 110 | . 68 42 Gun 110 | . 68 42 Cannon . | . . . Launcher . | . . . Special . | . . . Kinetic 36 | . 34 2 Thermal 74 | . 34 40 Explosive . | . . . Electromagnetic . | . . . Robot Hit Streak 19 | . 11 19 Robot Miss Streak 3 | . 3 1 Penetration Max . | . . . Secondary Targets 1 | . 1 . Max Gunslinging Chain 1 | . 1 . Shots Hit Robots 88 | . 50 38 Core Hits 32 | 1 21 10 Critical Kills . | . . . Critical Parts Destroyed . | . . . Critical Strikes 5 | . 2 3 Burn 5 | . 2 3 Melee Attacks . | . . . Impact . | . . . Slashing . | . . . Piercing . | . . . Sneak Attacks . | . . . Combat Hostiles . | . . . Follow-up Attacks . | . . . Damage Inflicted 1167 | 5 647 515 Guns 1162 | . 647 515 Cannons . | . . . Explosions . | . . . Melee . | . . . Ramming 5 | 5 . . Kinetic 347 | . 323 24 Thermal 815 | . 324 491 Explosive . | . . . Electromagnetic . | . . . Impact . | . . . Slashing . | . . . Piercing . | . . . Highest Corruption 2 | . 2 2 Average Corruption 2 | . 2 2 Corruption Purged . | . . . Corruption Blocked . | . . . Effects 5 | . 2 3 Message Errors 1 | . . 1 Matter Fused 2 | . . 2 Heat Flow Errors 1 | . 1 . Alerts 1 | . 1 . Overload Shots . | . . . Overflow Damage . | . . . Projectiles . | . . . Explosions . | . . . Melee . | . . . Knockbacks . | . . . Impact . | . . . Kinetic . | . . . Secondary . | . . . Self-Inflicted Damage . | . . . Shots . | . . . Rammed . | . . . Targets Rammed 2 | 2 . . Kicked 2 | 2 . . Crushed . | . . . Highest Temperature 168 | . 168 4 Average Temperature 68 | . 68 4 Received Heat Transfer 285 | . 204 81 Siege Activations . | . . . Robots Corrupted . | . . . Combat Hostiles . | . . . Parts Fried . | . . . Impact Corruptions . | . . . Robots Melted . | . . . Combat Hostiles . | . . . Parts Melted 3 | . 2 1 Heat Transferred 2555 | . 1110 1445 Parts Sabotaged . | . . . Parts Stolen . | . . . Parts Stripped . | . . . Power Chain Reactions . | . . . Alert | -11 -10 -10 ------- Run | Yrd Mat Sub Peak Influence 280 | . 280 . Initial . | . . . Average 86 | . 94 . Maximum Alert Level 1 | . 1 . Low Security (%) 78 | 100 76 . Level 1 21 | . 23 . Level 2 . | . . . Level 3 . | . . . Level 4 . | . . . Level 5 . | . . . High Security . | . . . Max Security . | . . . Squads Dispatched 1 | . 1 . Investigation . | . . . Extermination . | . . . Reinforcement 1 | . 1 . Assault . | . . . Garrison . | . . . Intercept . | . . . Searches Triggered . | . . . Construction Impeded . | . . . Haulers Reinforced . | . . . Active Scanning Responses . | . . . Cargo Convoy Interrupts . | . . . Stealth | -11 -10 -10 --------- Run | Yrd Mat Sub Distress Signals 2 | . 2 . Communications Jammed . | . . . Distress Signals . | . . . Times Spotted 21 | . 17 4 Peak Tracking Total 5 | . 5 2 Tactical Retreats 1 | . 1 . Traps | -11 -10 -10 ------- Run | Yrd Mat Sub Traps Triggered 2 | . 1 1 Indirectly . | . . . Trap Hack Attempts . | . . . Triggered . | . . . Disarmed . | . . . Reprogrammed . | . . . Reused . | . . . Traps Extracted . | . . . Installed . | . . . Triggered . | . . . Machines | -11 -10 -10 ---------- Run | Yrd Mat Sub Machines Disabled . | . . . Max in Single Turn . | . . . Machines Repaired . | . . . Machines Dismantled . | . . . Machines Sabotaged . | . . . Overloaded Fab Kills . | . . . Hacking | -11 -10 -10 --------- Run | Yrd Mat Sub Machines Accessed 3 | . 3 . Terminals 3 | . 3 . Fabricators . | . . . Repair Stations . | . . . Recycling Units . | . . . Scanalyzers . | . . . Garrison Access . | . . . Total Hacks 7 | . 7 . Successful 4 | . 4 . Failed 3 | . 3 . Catastrophic . | . . . Database Lockouts . | . . . Manual 7 | . 7 . Terminals 7 | . 7 . Fabricators . | . . . Repair Stations . | . . . Recycling Units . | . . . Scanalyzers . | . . . Garrison Access . | . . . Terminal Hacks 1 | . 1 . Unreport Threat 1 | . 1 . Fabricator Hacks . | . . . Repair Station Hacks . | . . . Recycling Unit Hacks . | . . . Scanalyzer . | . . . Garrison Access Hacks . | . . . Unauthorized Hacks 3 | . 3 . Terminals 3 | . 3 . Botnet 3 | . 3 . Fabricators . | . . . Repair Stations . | . . . Recycling Units . | . . . Scanalyzers . | . . . Garrison Access . | . . . Data Cores Recovered . | . . . Used . | . . . Hacking Detections 2 | . 2 . Full Trace Events . | . . . Feedback Events . | . . . Feedback Blocked . | . . . Robot Schematics Acquired . | . . . Robots Built . | . . . Authchips . | . . . Time . | . . . Total Robot Build Rating . | . . . Part Schematics Acquired . | . . . Parts Built . | . . . Authchips . | . . . Time . | . . . Total Part Build Rating . | . . . Parts Repaired . | . . . Time . | . . . Parts Recycled . | . . . Recycled Matter . | . . . Retrieved Matter . | . . . Retrieved Components . | . . . Parts Scanalyzed . | . . . Part Schematics Acquired . | . . . Parts Damaged . | . . . Bothacking | -11 -10 -10 ------------ Run | Yrd Mat Sub Used RIF Installer . | . . . Robots Hacked . | . . . Non-combat . | . . . Combat . | . . . Robot Hacks Applied . | . . . Relay Couplers Released . | . . . Fabnet Peak Effective % . | . . . Robots Rewired . | . . . Allies Hacked . | . . . Hacks Repelled . | . . . Allies | -11 -10 -10 -------- Run | Yrd Mat Sub Total Allies . | . . . Largest Group . | . . . Highest-Rated Group . | . . . Highest-Rated Ally . | . . . Total Orders . | . . . Ally Attacks . | . . . Total Damage . | . . . Kills . | . . . Allies Corrupted . | . . . Allies Melted . | . . . Intel | -11 -10 -10 ------- Run | Yrd Mat Sub Robot Analysis Total . | . . . Derelict Logs Recovered . | . . . Drone Launches . | . . . Drone Recoveries . | . . . Exploration | -11 -10 -10 ------------- Run | Yrd Mat Sub Turns Passed 838 | 52 597 189 Spaces Moved 338 | 34 227 77 Core 18 | 8 . 10 Treads . | . . . Legs 259 | 26 227 6 Wheels 61 | . . 61 Hover . | . . . Flight . | . . . Fastest Speed 50 | 50 120 110 Average Speed 124 | 121 123 130 Slowest Speed 350 | 150 190 350 Overloaded Moves . | . . . Propulsion Burnouts . | . . . Robots Hopped . | . . . Cave-ins Triggered . | . . . Exploration Rate (%) 17 | 5 41 5 Regions Visited 2 Branch Regions 1 Pre-discovered Areas . | . . . Known Exits Taken . | . . . Unknown Exits Taken 2 | 1 1 . Scrap Searched 3 | . . 3 Spaces Dug . | . . . Terrain Destroyed . | . . . Melee . | . . . Projectile . | . . . AOE . | . . . Terrain Rammed . | . . . Walls Destroyed . | . . . Machines Disabled . | . . . Actions | -11 -10 -10 --------- Run | Yrd Mat Sub Total 639 | 41 473 125 Wait 208 | . 202 6 Move 337 | 34 226 77 Hop . | . . . Pick Up 4 | . 3 1 Fast Attach 11 | 6 2 3 Attach 1 | . 1 . Detach . | . . . Swap 5 | . 4 1 Drop 1 | . 1 . Fire 71 | . 34 37 Melee . | . . . Ram . | . . . Kick 1 | 1 . . Crush . | . . . Escape Stasis . | . . . Rewire . | . . . Trap . | . . . Miscellaneous . | . . . Route ------- -11/Scrapyard -10/Materials (discovered 2 exits: [*Mat] / [*Sub]) -10/Subcaves History --------- Turn | Location | Event 10 | -11/Scrapyard | Discovered new exit (range 14) 53 | -11/Scrapyard | Entered Materials 310 | -10/Materials | Build established: Mutant 406 | -10/Materials | Discovered new exit (range 16) 473 | -10/Materials | Discovered new exit (range 8) 650 | -10/Materials | Entered Subcaves 654 | -10/Subcaves | Ambushed by Subdwellers from Twisted Machinery 693 | -10/Subcaves | Core integrity fell below 50% 702 | -10/Subcaves | Ambushed by angry Subdweller bent on revenge 755 | -10/Subcaves | Lost 3 parts (1p2n) 807 | -10/Subcaves | Core integrity fell below 20% 839 | -10/Subcaves | Destroyed by Piercing Trap Last Messages --------------- 00808_ 68-I2S(R) destroyed. 00819_ System corrupted: Matter fused (-9). 00819_ Searching scrap... 00819_ Found Mak. Power Source. 00819_ Found 57 Matter. 00820_ Acquired 9 matter. 00821_ Acquired Mak. Power Source. 00823_ Acquired 10 matter. 00835_ Searching scrap... 00835_ Found Shrapnel Trap. 00835_ Found 67 Matter. 00836_ Searching scrap... 00836_ Found Sub. Beam Cannon. 00836_ Found Flamer. 00836_ Found 57 Matter. 00837_ Sub. Monowheel shoots sparks and powers down. 00838_ Acquired Flamer. 00839_ Triggered Piercing Trap. 00839_ Spikes shoot up from the floor. 00839_ Critical hit (Impale). Map ----- +----------------------------------------------------+ | ?????????????????????????????????????????????????? | | ?????????????????????????????????????????????????? | | ?????????????????????????????????????????????????? | | ?????????????????????????????????????????????????? | | ?????????????????????????????????????????????????? | | ?????????????????????????????????????????????????? | | ?????????????????????????????????????????????????? | | ?????????????????????????????????????????????????? | | ?????????????????????????????????????????????????? | | ?????????????????????????????????????????????????? | | ?????????????????????????????????????????????????? | | ?????????????????????????????????????????????????? | | ?????????????????????????????????????????????????? | | ?????????????????????????????????????????????????? | | ?????????????????????????????????????????????????? | | ?????????????????????????????????????????????????? | | ?????????????????????????????????????????????????? | | ?????????????????????????????????????????????????? | | ?????????????????????????????????????????????????? | | ?????????????????????????????????????????????????? | | ?????????????????????????????????????????????????? | | ????????????????????? "####?????????????????????? | | ??????????#####?????? ######?????????????????????? | | ??????????#####?????? + <##?????????????????????? | | ??????????##"#####?#####< ##?????????????????????? | | ??????????##%###########<@##?????????????????????? | | ??????????##" ""#####<%% ##?????????????????????? | | ??????????### # & ] ##?????????????????????? | | ?????####?###" ## ###?????????????????????? | | ???#######?#####" ##<<<####?????????????????????? | | ??##### ########< "###### #???????????????????? | | ## ##### < % ### ##???????????????????? | | ## % ###???????????????????? | | % ##????????????????????? | | ## ## ###????????????????????? | | ?????#### #### ## #### ????????????????????? | | ??????#### ###### ### ####?????????????????????? | | ???###### ####### ######???????????????????????? | | ??? ##### ###?### ######???????????????????????? | | ?? ## ##???? ##???????????????????????????? | | ??### ### #%##???? ##???????????????????????????? | | ??## ########???? #???????????????????????????? | | #?## ########????! ##???????????????????????????? | | ##### ##?????????%* #???????????????????????????? | | #### ###?????????& ##???????????????????????????? | | ### " #####???????? ##???????????????????????????? | | &#!""" ### ???????? ##???????????????????????????? | | % %["" """ ##????? ##???????????????????????????? | | &!%" " " ##???????????????????????????????????? | | # " ###???????????????????????????????????? | +----------------------------------------------------+ Best States ------------- Heat Dissipation 25 Energy Generation 15 Energy Capacity 250 Matter Stores 300 Matter Capacity 300 Sight Range 16 Terrain Scan Density 10 Evasion (%) 55 Item Schematics ----------------- None Robot Schematics ------------------ None Fabricated ------------ Nothing Alien Tech Used ----------------- None Achievements -------------- None Challenges ------------ None Game ------ Seed TimingGodDetector Manual? 0 Play Time 00:06:07 Cumulative 48.2 hours Start 2024.10.25 @ 15:33:23 End 2024.10.25 @ 15:38:19 Sessions 1 Manual Loads 0 Difficulty Rogue Special Mode None Game No. 84 Rogue 84 Adventurer 0 Explorer 0 Win Type - Total 1 Types 1/0/0/0/0/0/0/0/0 Lore% 33 Gallery% 47 Achievement% 41 Wizard Run 0 Options --------- Layout 0 ASCII 0 Keyboard 1 Movement Numpad Keybinds 0 Fullscreen 2 Font 24/Terminus Map View 76x50 Zoom Use 0% Tactical HUD 1 Map Filters NONE Filters NONE Steam 1 RUN: af6bc960-0b8c-4a12-a269-b387c92e5e4e